bitfinex/quotes_BTCUSD_20240717
["timestamp","ask_amount","ask_price","bid_price","bid_amount"]
[1721192178186,0.00084,65923.0,65922.0,2.04354285]
[1721192178582,0.00084,65923.0,65922.0,2.04854285]
[1721192178790,0.00084,65923.0,65922.0,2.04354285]
[1721192179188,0.00084,65923.0,65922.0,2.04854285]
[1721192179389,0.00084,65923.0,65922.0,2.04454343]
[1721192179790,0.00084,65923.0,65922.0,2.04854343]
[1721192180152,0.00084,65923.0,65922.0,2.04354343]
[1721192180356,0.00084,65923.0,65922.0,1.73615543]
[1721192180610,0.217332,65923.0,65922.0,0.83648543]
[1721192180813,0.217332,65923.0,65922.0,0.13648543]
[1721192181018,0.24140646,65923.0,65922.0,0.01053836]
[1721192181217,0.24140646,65923.0,65922.0,0.004]
[1721192181439,0.24140646,65923.0,65922.0,0.01543746]
[1721192181568,0.24140646,65923.0,65922.0,0.004]
[1721192181772,0.24140646,65923.0,65922.0,0.01043746]
[1721192181974,0.24140646,65923.0,65922.0,0.004]
[1721192182230,0.24140646,65923.0,65922.0,0.00643746]
[1721192182543,0.00277097,65922.0,65918.0,0.151703]
[1721192182675,0.217332,65923.0,65922.0,0.07314335]
[1721192183276,1.3632053,65923.0,65922.0,0.07314335]
[1721192183477,1.57916574,65923.0,65922.0,0.07314335]
[1721192183677,1.62916574,65923.0,65922.0,0.07314335]
[1721192183884,1.57916574,65923.0,65922.0,0.07314335]
[1721192184952,1.62916574,65923.0,65922.0,0.07314335]
[1721192185206,1.63016574,65923.0,65922.0,0.07414335]
[1721192185820,1.58016574,65923.0,65922.0,0.07414335]
[1721192187731,1.58016574,65923.0,65922.0,0.07514335]
[1721192188140,1.57916574,65923.0,65922.0,0.07414335]
[1721192188332,1.62916574,65923.0,65922.0,0.07314335]
[1721192188532,1.63016574,65923.0,65922.0,0.07514335]
[1721192188730,1.58016574,65923.0,65922.0,0.07514335]
[1721192189069,1.58016574,65923.0,65922.0,0.07414335]
[1721192189070,1.57916574,65923.0,65922.0,0.07414335]
[1721192189341,1.58016574,65923.0,65922.0,0.07514335]
[1721192190351,1.63016574,65923.0,65922.0,0.07514335]
[1721192190537,1.62916574,65923.0,65922.0,0.07414335]
[1721192191406,1.62916574,65923.0,65922.0,0.07314335]
[1721192191835,1.62916574,65923.0,65922.0,0.07414335]
[1721192192034,1.63016574,65923.0,65922.0,0.07514335]
[1721192192646,1.58016574,65923.0,65922.0,0.07514335]
[1721192192876,1.63016574,65923.0,65922.0,0.07514335]
[1721192193726,1.63016574,65923.0,65922.0,0.07606735]
[1721192194253,1.58016574,65923.0,65922.0,0.07606735]
[1721192194811,1.63016574,65923.0,65922.0,0.07606735]
[1721192195192,1.58016574,65923.0,65922.0,0.07606735]
[1721192196628,1.63016574,65923.0,65922.0,0.07606735]
[1721192196823,1.58016574,65923.0,65922.0,0.07606735]
[1721192197653,1.58016574,65923.0,65922.0,0.07506735]
[1721192197860,1.63016574,65923.0,65922.0,0.07606735]
[1721192198212,1.62916574,65923.0,65922.0,0.07506735]
[1721192198645,1.63016574,65923.0,65922.0,0.07606735]
[1721192199503,1.43706574,65923.0,65922.0,0.07606735]
[1721192200626,1.43706574,65923.0,65922.0,0.07506735]
[1721192201026,1.43706574,65923.0,65922.0,0.07606735]
[1721192201228,1.43606574,65923.0,65922.0,0.07506735]
[1721192201656,1.43706574,65923.0,65922.0,0.07606735]
[1721192202863,0.22084,65923.0,65922.0,0.07606735]
[1721192203104,0.00184,65923.0,65922.0,0.22336735]
[1721192203344,0.00184,65923.0,65922.0,0.37506135]
[1721192203583,0.00184,65923.0,65922.0,0.6849451]
[1721192203840,0.00184,65923.0,65922.0,0.6839451]
[1721192204470,0.00084,65923.0,65922.0,0.6829451]
[1721192204671,0.00184,65923.0,65922.0,0.6839451]
[1721192204871,0.00184,65923.0,65922.0,0.6849451]
[1721192205173,0.00184,65923.0,65922.0,0.6839451]
[1721192205387,0.00284,65923.0,65922.0,0.6839451]
[1721192205587,0.00184,65923.0,65922.0,0.6829451]
[1721192208041,0.00084,65923.0,65922.0,0.6829451]
[1721192208439,0.00184,65923.0,65922.0,0.6829451]
[1721192209256,0.00084,65923.0,65922.0,0.9863331]
[1721192209771,0.00184,65923.0,65922.0,0.9863331]
[1721192210351,0.00184,65923.0,65922.0,1.11228154]
[1721192210796,0.00184,65923.0,65922.0,1.81228154]
[1721192211502,0.00084,65923.0,65922.0,1.81228421]
[1721192211710,0.00184,65923.0,65922.0,1.81228421]
[1721192211871,0.00084,65923.0,65922.0,1.81228421]
[1721192214688,0.00084,65923.0,65922.0,1.81228331]
[1721192215090,0.00084,65923.0,65922.0,1.81228346]
[1721192215291,0.00084,65923.0,65922.0,0.9278631]
[1721192215574,0.00084,65923.0,65922.0,0.9288631]
[1721192215775,0.00084,65923.0,65922.0,0.9298631]
[1721192216290,0.00084,65923.0,65922.0,0.9288631]
[1721192216759,0.00184,65923.0,65922.0,0.9288631]
[1721192216933,0.00184,65923.0,65922.0,0.2288631]
[1721192217251,0.00184,65923.0,65922.0,0.2278631]
[1721192219243,0.00084,65923.0,65922.0,0.2278631]
[1721192219562,0.00184,65923.0,65922.0,0.2278631]
[1721192219776,0.00084,65923.0,65922.0,0.2278631]
[1721192220259,0.00184,65923.0,65922.0,0.3795571]
[1721192222943,0.00184,65923.0,65922.0,1.41567232]
[1721192223355,0.00837,65924.0,65923.0,0.75846]
[1721192223554,0.00837,65924.0,65923.0,1.02400723]
[1721192223792,0.00837,65924.0,65923.0,1.03079756]
[1721192224730,0.00837,65924.0,65923.0,1.73079756]
[1721192226522,0.00837,65924.0,65923.0,1.7307994]
[1721192227327,0.00937,65924.0,65923.0,1.7307994]
[1721192227902,0.00837,65924.0,65923.0,1.7307994]
[1721192228363,0.00937,65924.0,65923.0,1.7307994]
[1721192229703,0.00937,65924.0,65923.0,1.73079779]
[1721192231260,0.00837,65924.0,65923.0,1.73079779]
[1721192232851,0.00837,65924.0,65923.0,1.60585033]
[1721192233052,0.00837,65924.0,65923.0,1.73279863]
[1721192235022,0.00837,65924.0,65923.0,1.73179863]
[1721192235562,0.00837,65924.0,65923.0,1.73079863]
[1721192236172,0.00837,65924.0,65923.0,1.60585033]
[1721192236379,0.00837,65924.0,65923.0,1.73179995]
[1721192236762,0.00837,65924.0,65923.0,0.97233995]
[1721192236967,0.00837,65924.0,65923.0,0.83273995]
[1721192237864,0.160059,65924.0,65923.0,0.70679033]
[1721192238070,0.463438,65924.0,65923.0,0.70679033]
[1721192238193,0.464438,65924.0,65923.0,0.70679033]
[1721192238389,0.463438,65924.0,65923.0,0.70679033]
[1721192238633,0.463438,65924.0,65923.0,0.00679033]
[1721192239043,0.151692,65923.0,65922.0,0.07406735]
[1721192239444,0.151692,65923.0,65922.0,0.08090307]
[1721192240068,0.00837,65924.0,65922.0,0.08090307]
[1721192240462,0.001,65923.0,65922.0,0.08090307]
[1721192241007,0.00837,65924.0,65922.0,0.08090307]
[1721192242175,0.001,65923.0,65922.0,0.08090307]
[1721192243078,0.001,65923.0,65922.0,0.78090307]
[1721192243303,0.00837,65924.0,65922.0,0.78090307]
[1721192244185,0.00837,65924.0,65922.0,0.93259707]
[1721192244617,0.001,65923.0,65922.0,1.38178507]
[1721192244619,0.00837,65924.0,65923.0,0.27764852]
[1721192244829,0.00837,65924.0,65923.0,1.59401953]
[1721192244983,0.00837,65924.0,65923.0,1.59124856]
[1721192245828,0.00837,65924.0,65923.0,1.59124524]
[1721192245975,0.00837,65924.0,65923.0,1.46529204]
[1721192246175,0.00837,65924.0,65923.0,1.59224523]
[1721192246613,0.00937,65924.0,65923.0,1.59224523]
[1721192246967,0.00837,65924.0,65923.0,1.59224523]
[1721192247183,0.00837,65924.0,65923.0,1.59324523]
[1721192247893,0.00837,65924.0,65923.0,1.73784523]
[1721192249032,0.00837,65924.0,65923.0,1.73784449]
[1721192255755,0.00837,65924.0,65923.0,1.28986049]
[1721192256476,0.160059,65924.0,65923.0,0.70883204]
[1721192256612,0.00837,65924.0,65923.0,0.8347934]
[1721192256818,0.00837,65924.0,65923.0,0.82796136]
[1721192257023,0.00837,65924.0,65923.0,0.82696136]
[1721192258078,0.00837,65924.0,65923.0,0.82596136]
[1721192258405,0.00837,65924.0,65923.0,0.82688536]
[1721192258681,0.00837,65924.0,65923.0,0.82688356]
[1721192260251,0.00837,65924.0,65923.0,0.83371466]
[1721192261035,0.14337,65924.0,65923.0,0.83371466]
[1721192261236,0.598438,65924.0,65923.0,0.83371466]
[1721192261476,1.10619874,65924.0,65923.0,0.7077551]
[1721192261691,1.40957774,65924.0,65923.0,0.0077551]
[1721192261893,1.4212779,65924.0,65923.0,0.0077551]
[1721192262092,1.4212779,65924.0,65923.0,0.000924]
[1721192262251,1.74141508,65924.0,65923.0,0.000924]
[1721192262463,1.78135917,65924.0,65923.0,0.000924]
[1721192262683,1.6903779,65924.0,65923.0,0.001924]
[1721192263246,1.73133594,65924.0,65923.0,0.001924]
[1721192263965,1.73533594,65924.0,65923.0,0.001924]
[1721192264195,1.68882569,65924.0,65923.0,0.001924]
[1721192264394,1.73882569,65924.0,65923.0,0.002924]
[1721192264598,1.67064533,65924.0,65923.0,0.002924]
[1721192265002,1.63267774,65924.0,65923.0,0.002924]
[1721192265210,1.73885881,65924.0,65923.0,0.002924]
[1721192266964,1.67072105,65924.0,65923.0,0.002924]
[1721192267163,1.69445466,65924.0,65923.0,0.002924]
[1721192267364,1.64445466,65924.0,65923.0,0.002924]
[1721192267564,1.71256002,65924.0,65923.0,0.002924]
[1721192267764,1.68882641,65924.0,65923.0,0.002924]
[1721192268279,1.68881538,65924.0,65923.0,0.002924]
[1721192268704,1.14429874,65924.0,65923.0,0.002924]
[1721192269031,0.467438,65924.0,65923.0,0.002924]
[1721192269341,0.770817,65924.0,65923.0,0.002924]
[1721192271211,0.467438,65924.0,65923.0,0.002924]
[1721192271991,0.01237,65924.0,65923.0,0.139824]
[1721192272191,0.01237,65924.0,65923.0,0.14665876]
[1721192272758,0.01237,65924.0,65923.0,0.60173476]
[1721192272891,0.01237,65924.0,65923.0,0.90511876]
[1721192273298,0.00837,65924.0,65923.0,0.90411876]
[1721192273477,0.00837,65924.0,65923.0,0.60073476]
[1721192273678,0.01237,65924.0,65923.0,0.60173476]
[1721192273890,0.00837,65924.0,65923.0,0.59973476]
[1721192274418,0.01237,65924.0,65923.0,0.60073476]
[1721192274613,0.01237,65924.0,65923.0,0.59973476]
[1721192274953,0.01537,65924.0,65923.0,0.59973476]
[1721192275526,0.01537,65924.0,65923.0,0.90311876]
[1721192275757,0.01537,65924.0,65923.0,1.02907231]
[1721192276059,0.01537,65924.0,65923.0,1.33245631]
[1721192276569,0.01537,65924.0,65923.0,1.43245631]
[1721192276767,0.00837,65924.0,65923.0,2.03245631]
[1721192276941,0.01137,65924.0,65923.0,2.03245631]
[1721192277486,0.01137,65924.0,65923.0,2.03945631]
[1721192277925,0.00837,65924.0,65923.0,1.91350276]
[1721192278134,0.00837,65924.0,65923.0,2.04844543]
[1721192278274,0.00837,65924.0,65923.0,2.03244543]
[1721192278498,0.00837,65924.0,65923.0,2.59821117]
[1721192279592,0.00837,65924.0,65923.0,2.79821117]
[1721192279798,0.00837,65924.0,65923.0,2.79921117]
[1721192280051,0.00837,65924.0,65923.0,2.79021117]
[1721192280255,0.00837,65924.0,65923.0,2.79821117]
[1721192280548,0.00837,65924.0,65923.0,2.81221117]
[1721192280751,0.00837,65924.0,65923.0,2.80421117]
[1721192280989,0.00837,65924.0,65923.0,2.79021117]
[1721192281287,0.00837,65924.0,65923.0,2.81521117]
[1721192281684,0.00837,65924.0,65923.0,3.13899018]
[1721192281884,0.00837,65924.0,65923.0,3.09359517]
[1721192282114,0.00837,65924.0,65923.0,3.11181604]
[1721192282304,0.00837,65924.0,65923.0,3.13896589]
[1721192282507,0.00837,65924.0,65923.0,3.18896589]
[1721192282647,0.00837,65924.0,65923.0,3.13896589]
[1721192282853,0.00837,65924.0,65923.0,3.15296589]
[1721192283315,0.00837,65924.0,65923.0,3.0270205]
[1721192283550,0.00837,65924.0,65923.0,3.12157568]
[1721192283679,0.00837,65924.0,65923.0,3.17157568]
[1721192283876,0.00837,65924.0,65923.0,3.15294368]
[1721192284084,0.00837,65924.0,65923.0,2.84955968]
[1721192284283,0.00837,65924.0,65923.0,2.86046852]
[1721192284471,0.00837,65924.0,65923.0,2.81819168]
[1721192286538,0.00837,65924.0,65923.0,2.81819349]
[1721192287779,0.00837,65924.0,65923.0,2.61819349]
[1721192288645,0.00837,65924.0,65923.0,2.31480949]
[1721192289260,0.23065291,65938.0,65933.0,0.151668]
[1721192289408,0.07899491,65938.0,65934.0,0.16122557]
[1721192289606,0.04931185,65937.0,65934.0,0.1584546]
[1721192289811,0.07899491,65938.0,65935.0,0.00277097]
[1721192290009,0.07899491,65938.0,65936.0,0.0067823]
[1721192290236,0.07899491,65938.0,65937.0,0.454978]
[1721192290415,0.00837,65940.0,65939.0,0.151655]
[1721192290633,0.00837,65940.0,65939.0,0.46173519]
[1721192291068,0.00837,65940.0,65939.0,0.82954519]
[1721192291277,0.00837,65940.0,65939.0,0.90704519]
[1721192293533,0.00937,65940.0,65939.0,1.21035519]
[1721192293739,0.00937,65940.0,65939.0,0.60373519]
[1721192293940,0.00837,65940.0,65939.0,0.90904519]
[1721192294163,0.00837,65940.0,65939.0,0.91104519]
[1721192294562,0.00837,65940.0,65939.0,0.90904519]
[1721192295436,0.00837,65940.0,65939.0,0.90704519]
[1721192295887,0.00837,65940.0,65939.0,0.91104519]
[1721192296091,0.00837,65940.0,65939.0,0.90704519]
[1721192296549,0.00837,65940.0,65939.0,0.91004519]
[1721192296672,0.00837,65940.0,65939.0,0.90704519]
[1721192297480,0.00837,65940.0,65939.0,0.14877019]
[1721192298242,0.00837,65940.0,65939.0,0.30042519]
[1721192299639,0.00837,65940.0,65939.0,0.22292519]
[1721192299837,0.00937,65940.0,65939.0,0.22292519]
[1721192300036,0.00837,65940.0,65939.0,0.22292519]
[1721192300485,0.00937,65940.0,65939.0,0.07127019]
[1721192300655,0.00937,65940.0,65939.0,0.00677019]
[1721192300863,0.00937,65940.0,65938.0,0.151655]
[1721192301192,0.00937,65940.0,65939.0,0.00676994]
[1721192301621,0.00937,65940.0,65937.0,0.303319]
[1721192301814,0.00937,65940.0,65939.0,0.00676994]
[1721192302017,0.00937,65940.0,65939.0,0.151655]
[1721192302196,0.00937,65940.0,65939.0,0.15842494]
[1721192302358,0.00837,65940.0,65939.0,0.15842494]
[1721192302772,0.00937,65940.0,65939.0,0.15842494]
[1721192303192,0.01037,65940.0,65939.0,0.29572494]
[1721192303940,0.01037,65940.0,65939.0,0.59903494]
[1721192305411,0.01037,65940.0,65939.0,0.72496365]
[1721192306037,0.00837,65940.0,65939.0,0.72496365]
[1721192306244,0.00937,65940.0,65939.0,0.72496365]
[1721192306652,0.00837,65940.0,65939.0,0.72496365]
[1721192306853,0.00937,65940.0,65939.0,0.72496365]
[1721192308890,0.00937,65940.0,65939.0,0.72496366]
[1721192309123,0.00837,65940.0,65939.0,0.72496366]
[1721192309592,0.00937,65940.0,65939.0,0.72496366]
[1721192310212,0.00837,65940.0,65939.0,0.72496366]
[1721192310589,0.00937,65940.0,65939.0,0.72496366]
[1721192311424,0.00937,65940.0,65939.0,1.02827366]
[1721192311823,0.00937,65940.0,65939.0,0.72496366]
[1721192312227,0.00937,65940.0,65939.0,0.59903494]
[1721192312442,0.00937,65940.0,65939.0,0.7249633]
[1721192313539,0.03065534,65940.0,65939.0,0.7249633]
[1721192315480,0.00937,65940.0,65939.0,0.59903494]
[1721192315681,0.03064853,65940.0,65939.0,0.72496365]
[1721192318075,0.03064853,65940.0,65939.0,1.02827365]
[1721192318697,0.00937,65940.0,65939.0,1.02827365]
[1721192318960,0.0307237,65940.0,65939.0,1.02827336]
[1721192319170,0.0297237,65940.0,65939.0,1.33158336]
[1721192319841,0.0307237,65940.0,65939.0,1.33158336]
[1721192320643,0.0297237,65940.0,65939.0,1.33158336]
[1721192321993,0.0298926,65940.0,65939.0,1.33158325]
[1721192322376,0.0298926,65940.0,65939.0,1.33258325]
[1721192322580,0.0298926,65940.0,65939.0,1.33358325]
[1721192322783,0.0298926,65940.0,65939.0,1.19628325]
[1721192324379,0.0298926,65940.0,65939.0,1.33778325]
[1721192325159,0.02979051,65940.0,65939.0,1.33678365]
[1721192325705,0.02979051,65940.0,65939.0,1.33578365]
[1721192327045,0.02979051,65940.0,65939.0,1.33678365]
[1721192327629,0.02979051,65940.0,65939.0,1.33778365]
[1721192328405,0.00837,65940.0,65939.0,1.33778336]
[1721192328742,0.00837,65940.0,65939.0,1.21185494]
[1721192328949,0.00837,65940.0,65939.0,1.33778336]
[1721192329282,0.02978281,65940.0,65939.0,1.33778336]
[1721192329865,0.00837,65940.0,65939.0,1.33778336]
[1721192330363,0.0297822,65940.0,65939.0,1.33778336]
[1721192331774,0.02978817,65940.0,65939.0,1.33778336]
[1721192335107,0.0297906,65940.0,65939.0,1.33778336]
[1721192338382,0.02980612,65940.0,65939.0,1.33778336]
[1721192340868,0.00837,65940.0,65939.0,1.21185494]
[1721192341065,0.02984143,65940.0,65939.0,1.33777786]
[1721192341509,0.02984143,65940.0,65939.0,2.03777786]
[1721192343862,0.02984143,65940.0,65939.0,1.91185494]
[1721192344038,0.02984143,65940.0,65939.0,2.03777786]
[1721192347200,0.02984115,65940.0,65939.0,2.03777786]
[1721192350381,0.00837,65940.0,65939.0,2.03777786]
[1721192350762,0.00837,65940.0,65939.0,1.91185494]
[1721192350956,0.02983116,65940.0,65939.0,2.03777496]
[1721192352683,0.02983116,65940.0,65939.0,1.65426496]
[1721192352817,0.02983116,65940.0,65939.0,0.83468996]
[1721192353253,0.02983116,65940.0,65939.0,1.28965496]
[1721192353629,0.02983398,65940.0,65939.0,1.16373494]
[1721192353852,0.02983398,65940.0,65939.0,0.46273494]
[1721192354914,0.02983398,65940.0,65939.0,0.58866664]
[1721192355109,0.11733398,65940.0,65939.0,0.58766664]
[1721192355315,0.11733398,65940.0,65939.0,0.89097664]
[1721192355519,0.02983398,65940.0,65939.0,1.03497664]
[1721192356979,0.02983398,65940.0,65939.0,1.03497577]
[1721192356980,0.02990121,65940.0,65939.0,1.03497577]
[1721192357598,0.02990121,65940.0,65939.0,1.33828577]
[1721192359489,0.02990121,65940.0,65939.0,2.03828577]
[1721192359737,0.03090121,65940.0,65939.0,2.03828577]
[1721192359940,0.03090121,65940.0,65939.0,2.04028577]
[1721192360144,0.03090121,65940.0,65939.0,1.91435494]
[1721192360436,0.03090121,65940.0,65939.0,2.04027592]
[1721192360634,0.02990121,65940.0,65939.0,2.04027592]
[1721192360833,0.02990121,65940.0,65939.0,2.04327592]
[1721192361518,0.02990121,65940.0,65939.0,1.34327592]
[1721192361726,0.02990121,65940.0,65939.0,1.34727592]
[1721192362445,0.02990121,65940.0,65939.0,1.33827592]
[1721192362650,0.02990121,65940.0,65939.0,1.34527592]
[1721192363060,0.02990121,65940.0,65939.0,1.33827592]
[1721192363271,0.00837,65940.0,65939.0,1.34427592]
[1721192363441,0.00837,65940.0,65939.0,1.35027592]
[1721192363769,0.00837,65940.0,65939.0,1.34427592]
[1721192363942,0.00837,65940.0,65939.0,1.35027592]
[1721192364138,0.02998767,65940.0,65939.0,1.35027592]
[1721192364543,0.02998767,65940.0,65939.0,2.04427592]
[1721192364740,0.02998767,65940.0,65939.0,2.03827592]
[1721192364939,0.02998767,65940.0,65939.0,2.04527592]
[1721192365807,0.02998767,65940.0,65939.0,2.05227592]
[1721192366689,0.0298693,65940.0,65939.0,2.05227592]
[1721192369834,0.00837,65940.0,65939.0,1.92635494]
[1721192370032,0.02986298,65940.0,65939.0,2.05227592]
[1721192370535,0.02986298,65940.0,65939.0,1.74896592]
[1721192370743,0.02986298,65940.0,65939.0,1.67036592]
[1721192371090,0.02986298,65940.0,65939.0,0.14669092]
[1721192371336,0.14666298,65940.0,65939.0,0.14669092]
[1721192371565,0.29831598,65940.0,65939.0,0.14669092]
[1721192371859,0.29831598,65940.0,65939.0,0.02076994]
[1721192371860,0.14666298,65940.0,65939.0,0.02076994]
[1721192372260,0.14666298,65940.0,65939.0,0.014]
[1721192372767,0.14666298,65940.0,65939.0,0.007]
[1721192372971,0.12517,65940.0,65938.0,0.000924]
[1721192373176,0.10887467,65939.0,65938.0,0.000924]
[1721192375717,0.10987467,65939.0,65938.0,0.000924]
[1721192376338,0.1098642,65939.0,65938.0,0.00769759]
[1721192376541,0.1098642,65939.0,65938.0,0.000924]
[1721192376776,0.1098642,65939.0,65938.0,0.00769759]
[1721192378403,0.0223642,65939.0,65938.0,0.00769759]
[1721192379558,0.0223719,65939.0,65938.0,0.00769759]
[1721192379980,0.02239388,65939.0,65938.0,0.00769759]
[1721192382713,0.02239853,65939.0,65938.0,0.00769759]
[1721192384487,0.02239853,65939.0,65938.0,1.33582499]
[1721192384840,0.001,65939.0,65938.0,1.33582499]
[1721192385045,0.0226037,65939.0,65938.0,0.34537999]
[1721192385633,0.0226037,65939.0,65938.0,0.64869499]
[1721192385830,0.00837,65940.0,65939.0,0.151655]
[1721192386078,0.02997482,65940.0,65939.0,0.27758201]
[1721192386234,0.02997482,65940.0,65939.0,0.28435195]
[1721192387458,0.03097482,65940.0,65939.0,0.28435195]
[1721192388067,0.02597482,65940.0,65939.0,0.28435195]
[1721192389096,0.02600734,65940.0,65939.0,0.28435176]
[1721192389302,0.02600734,65940.0,65939.0,0.58766176]
[1721192391795,0.02600734,65940.0,65939.0,1.03117176]
[1721192392124,0.02500734,65940.0,65939.0,1.03117176]
[1721192392332,0.02497726,65940.0,65939.0,1.73117076]
[1721192392513,0.02597726,65940.0,65939.0,1.73117077]
[1721192392718,0.02597726,65940.0,65939.0,2.03448077]
[1721192392914,0.02697726,65940.0,65939.0,2.03448077]
[1721192393364,0.02497726,65940.0,65939.0,2.03448077]
[1721192393697,0.02497726,65940.0,65939.0,2.03648077]
[1721192394616,0.02497726,65940.0,65939.0,2.03848077]
[1721192395044,0.02497726,65940.0,65939.0,1.33848077]
[1721192395545,0.00337,65940.0,65939.0,1.33848155]
[1721192395743,0.02497552,65940.0,65939.0,1.33848155]
[1721192396479,0.02497552,65940.0,65939.0,1.33648155]
[1721192397610,0.02497552,65940.0,65939.0,1.33448155]
[1721192397915,0.02497552,65940.0,65939.0,1.33548155]
[1721192398112,0.02497552,65940.0,65939.0,2.03548155]
[1721192398625,0.02497552,65940.0,65939.0,2.03748155]
[1721192398771,0.02505579,65940.0,65939.0,2.03748155]
[1721192399172,0.02505579,65940.0,65939.0,2.03648155]
[1721192399574,0.02505579,65940.0,65939.0,2.03848155]
[1721192399827,0.00337,65940.0,65939.0,2.03848155]
[1721192400400,0.02512522,65940.0,65939.0,2.03848155]
[1721192400601,0.02512522,65940.0,65939.0,0.98835155]
[1721192401049,0.02512522,65940.0,65939.0,1.73817155]
[1721192401204,0.0251665,65940.0,65939.0,1.73817126]
[1721192401613,0.0251662,65940.0,65939.0,0.91024494]
[1721192401835,0.0251662,65940.0,65939.0,1.03617076]
[1721192402421,0.0251662,65940.0,65939.0,1.03417076]
[1721192402640,0.02617379,65940.0,65939.0,1.03417076]
[1721192403077,0.02517379,65940.0,65939.0,1.03417076]
[1721192403248,0.02517379,65940.0,65939.0,1.03617076]
[1721192403572,0.02517379,65940.0,65939.0,1.33948076]
[1721192404409,0.02516862,65940.0,65939.0,1.33947476]
[1721192404609,0.02516862,65940.0,65939.0,2.04147476]
[1721192407425,0.00337,65940.0,65939.0,2.04147488]
[1721192407563,0.02515922,65940.0,65939.0,2.04147488]
[1721192408412,0.00337,65940.0,65939.0,2.04147488]
[1721192408619,0.00318955,65940.0,65939.0,2.04147488]
[1721192410397,0.00318955,65940.0,65939.0,2.19585662]
[1721192411436,0.00318955,65940.0,65939.0,2.19385662]
[1721192411859,0.00318955,65940.0,65939.0,2.19885662]
[1721192412060,0.00318955,65940.0,65939.0,2.20585662]
[1721192412304,0.00318955,65940.0,65939.0,2.19885662]
[1721192412525,0.00318955,65940.0,65939.0,2.19185662]
[1721192412657,0.02516184,65940.0,65939.0,1.59996488]
[1721192412860,0.11266184,65940.0,65939.0,1.30565488]
[1721192413350,0.02516184,65940.0,65939.0,1.30565488]
[1721192413528,0.02516184,65940.0,65939.0,1.60896488]
[1721192413760,0.00318955,65940.0,65939.0,1.60896643]
[1721192414088,0.00300911,65940.0,65939.0,1.60896643]
[1721192414494,0.02408342,65940.0,65939.0,1.60896643]
[1721192415105,0.02408342,65940.0,65939.0,0.90896643]
[1721192415822,0.02408342,65940.0,65939.0,1.04966643]
[1721192416372,0.02105034,65940.0,65939.0,1.04966643]
[1721192416510,0.00837,65942.0,65941.0,0.758252]
[1721192416711,0.00837,65942.0,65941.0,0.88417349]
[1721192416906,0.00837,65942.0,65941.0,0.88417272]
[1721192417506,0.00837,65942.0,65941.0,0.89093473]
[1721192418300,0.00837,65942.0,65941.0,1.59793473]
[1721192419092,0.00837,65942.0,65941.0,0.90493473]
[1721192420085,0.00837,65942.0,65941.0,0.90493552]
[1721192420692,0.00837,65942.0,65941.0,1.60493552]
[1721192421621,0.00837,65942.0,65941.0,1.35463652]
[1721192422630,0.00837,65942.0,65941.0,1.35463673]
[1721192422991,0.00837,65942.0,65941.0,1.22871522]
[1721192423194,0.00837,65942.0,65941.0,1.35462984]
[1721192424584,0.00837,65942.0,65941.0,2.05462984]
[1721192424813,0.00837,65942.0,65941.0,1.60492884]
[1721192426205,0.00837,65942.0,65941.0,1.61169122]
[1721192426466,0.00837,65942.0,65941.0,1.30839691]
[1721192426467,0.0302121,65942.0,65941.0,1.30839691]
[1721192426653,0.03019822,65942.0,65941.0,1.30839691]
[1721192426856,0.03019819,65942.0,65941.0,1.30839669]
[1721192427119,0.03019819,65942.0,65941.0,1.61169769]
[1721192427342,0.03019819,65942.0,65941.0,1.69159769]
[1721192427911,0.03019969,65942.0,65941.0,1.69159729]
[1721192428291,0.11249969,65942.0,65941.0,1.30839629]
[1721192428492,0.11249969,65942.0,65941.0,1.00509529]
[1721192429239,0.03019969,65942.0,65941.0,1.30839629]
[1721192429585,0.03019969,65942.0,65941.0,0.5430756]
[1721192429586,0.00837,65942.0,65941.0,0.5430756]
[1721192429788,0.00837,65942.0,65941.0,0.66900176]
[1721192429789,0.03017087,65942.0,65941.0,0.66900176]
[1721192430555,0.03017087,65942.0,65941.0,0.60840176]
[1721192432685,0.03017087,65942.0,65941.0,1.30840176]
[1721192432915,0.030138,65942.0,65941.0,1.30840177]
[1721192433716,0.030138,65942.0,65941.0,1.61170277]
[1721192434034,0.030138,65942.0,65941.0,2.05010377]
[1721192435352,0.030138,65942.0,65941.0,2.20448551]
[1721192435710,0.00837,65942.0,65941.0,1.50448551]
[1721192435918,0.00837,65942.0,65941.0,1.37855934]
[1721192436139,0.00837,65942.0,65941.0,1.50447242]
[1721192436943,0.00837,65942.0,65941.0,2.20447242]
[1721192437149,0.00837,65942.0,65941.0,2.19747242]
[1721192437948,0.00837,65942.0,65941.0,2.20647242]
[1721192438584,0.00837,65942.0,65941.0,2.50977342]
[1721192438735,0.00837,65942.0,65941.0,2.29947242]
[1721192438936,0.00837,65942.0,65941.0,2.30347242]
[1721192439136,0.00837,65942.0,65941.0,2.30346505]
[1721192439338,0.00837,65942.0,65941.0,2.31646505]
[1721192440292,0.00837,65942.0,65941.0,2.30346505]
[1721192441251,0.00837,65942.0,65941.0,2.31646505]
[1721192442028,0.00837,65942.0,65941.0,2.30346505]
[1721192442235,0.00837,65942.0,65941.0,2.17755934]
[1721192442442,0.00837,65942.0,65941.0,2.60676641]
[1721192442646,0.00837,65942.0,65941.0,2.30346541]
[1721192442844,0.00837,65942.0,65941.0,2.29046541]
[1721192443051,0.00837,65942.0,65941.0,2.60676641]
[1721192443302,0.00837,65942.0,65941.0,2.80861468]
[1721192443611,0.00837,65942.0,65941.0,2.87667206]
[1721192444023,0.00837,65942.0,65941.0,2.86367206]
[1721192444397,0.00837,65942.0,65941.0,2.78261468]
[1721192444933,0.00837,65942.0,65941.0,2.80078746]
[1721192445136,0.00837,65942.0,65941.0,2.47931368]
[1721192445387,0.00837,65942.0,65941.0,2.29046518]
[1721192446363,0.00837,65942.0,65941.0,2.30346518]
[1721192446767,0.00837,65942.0,65941.0,1.84578244]
[1721192447024,0.00837,65942.0,65941.0,1.78368244]
[1721192447180,0.08477,65942.0,65941.0,0.87843044]
[1721192447383,0.08477,65942.0,65941.0,1.03008044]
[1721192447667,0.08477,65942.0,65941.0,1.32038144]
[1721192447869,0.00837,65942.0,65941.0,1.32038144]
[1721192448076,0.00837,65942.0,65941.0,1.33338144]
[1721192448277,0.00837,65942.0,65941.0,1.63668244]
[1721192448480,0.00837,65942.0,65941.0,1.623701]
[1721192448679,0.00837,65942.0,65941.0,1.3204]
[1721192448883,0.00837,65942.0,65941.0,1.3264]
[1721192449310,0.00837,65942.0,65941.0,1.3004]
[1721192449738,0.00837,65942.0,65941.0,1.3064]
[1721192450513,0.00837,65942.0,65941.0,1.609701]
[1721192450713,0.00837,65942.0,65941.0,1.3064]